[Event "Titled Tuesday Blitz March 01 Late 2022"]
[White "Rudykh, Stepan"]
[Black "Ardila, Oscar Humberto"]
[WhiteFideId "4180321"]
[BlackFideId "4404742"]
[WhiteElo "2121"]
[BlackElo "1898"]
[Result "1-0"]
[Round "08"]
[TimeControl "180+1"]
[Date "2022.03.02"]
[WhiteClock "0:00:15"]
[BlackClock "0:00:31"]

1. e4 {[%clk 0:03:00]}  e5 {[%clk 0:02:57]} 2. Nf3 {[%clk 0:03:01]}  Nc6 {[%clk 0:02:57]} 3. Bb5 {[%clk 0:03:01]}  Nf6 {[%clk 0:02:56]} 4. O-O {[%clk 0:03:01]}  Nxe4 {[%clk 0:02:56]} 5. d4 {[%clk 0:03:01]}  Nd6 {[%clk 0:02:56]} 6. Bxc6 {[%clk 0:03:01]}  dxc6 {[%clk 0:02:55]} 7. dxe5 {[%clk 0:03:02]}  Nf5 {[%clk 0:02:56]} 8. Qxd8+ {[%clk 0:03:02]}  Kxd8 {[%clk 0:02:56]} 9. Nc3 {[%clk 0:03:02]}  Bb4 {[%clk 0:02:55]} 10. Ne2 {[%clk 0:02:50]}  h5 {[%clk 0:02:52]} 11. h3 {[%clk 0:02:33]}  Ke8 {[%clk 0:02:42]} 12. Nf4 {[%clk 0:02:10]}  Bd7 {[%clk 0:02:36]} 13. Ng5 {[%clk 0:01:54]}  Be7 {[%clk 0:02:24]} 14. Ne4 {[%clk 0:01:35]}  Nd4 {[%clk 0:02:20]} 15. c3 {[%clk 0:01:24]}  Nc2 {[%clk 0:02:14]} 16. Rb1 {[%clk 0:01:22]}  Bf5 {[%clk 0:02:14]} 17. Ng3 {[%clk 0:01:14]}  Bh7 {[%clk 0:02:14]} 18. Ngxh5 {[%clk 0:01:08]}  Kf8 {[%clk 0:02:03]} 19. g4 {[%clk 0:00:58]}  Rd8 {[%clk 0:02:00]} 20. Ng3 {[%clk 0:00:44]}  Na3 {[%clk 0:01:31]} 21. Ra1 {[%clk 0:00:42]}  Nc2 {[%clk 0:01:26]} 22. Rb1 {[%clk 0:00:41]}  Nd4 {[%clk 0:01:26]} 23. Ra1 {[%clk 0:00:37]}  Nf3+ {[%clk 0:01:23]} 24. Kg2 {[%clk 0:00:36]}  Nh4+ {[%clk 0:01:19]} 25. Kh1 {[%clk 0:00:34]}  g5 {[%clk 0:01:17]} 26. Nfh5 {[%clk 0:00:29]}  Bg6 {[%clk 0:01:15]} 27. Be3 {[%clk 0:00:24]}  Nf3 {[%clk 0:01:11]} 28. Rad1 {[%clk 0:00:22]}  Nxe5 {[%clk 0:01:07]} 29. Rxd8+ {[%clk 0:00:18]}  Bxd8 {[%clk 0:01:07]} 30. Bd4 {[%clk 0:00:19]}  f6 {[%clk 0:01:05]} 31. f4 {[%clk 0:00:17]}  gxf4 {[%clk 0:00:54]} 32. Rxf4 {[%clk 0:00:16]}  Nd3 {[%clk 0:00:45]} 33. Rf3 {[%clk 0:00:10]}  Ne1 {[%clk 0:00:42]} 34. Rf1 {[%clk 0:00:09]}  Nd3 {[%clk 0:00:41]} 35. Bxf6 {[%clk 0:00:06]}  Bxh5 {[%clk 0:00:21]} 36. Bxh8+ {[%clk 0:00:04]}  Kg8 {[%clk 0:00:22]} 37. Bd4 {[%clk 0:00:04]}  Bf7 {[%clk 0:00:19]} 38. Nf5 {[%clk 0:00:04]}  Bd5+ {[%clk 0:00:19]} 39. Kg1 {[%clk 0:00:03]}  Bg5 {[%clk 0:00:19]} 40. h4 {[%clk 0:00:02]}  Bf4 {[%clk 0:00:16]} 41. g5 {[%clk 0:00:02]}  c5 {[%clk 0:00:13]} 42. Ne7+ {[%clk 0:00:01]}  Kh7 {[%clk 0:00:12]} 43. Nxd5 {[%clk 0:00:02]}  cxd4 {[%clk 0:00:12]} 44. Nxf4 {[%clk 0:00:03]}  Ne5 {[%clk 0:00:13]} 45. Ne6 {[%clk 0:00:02]}  Kg6 {[%clk 0:00:13]} 46. Rf6+ {[%clk 0:00:03]}  Kh5 {[%clk 0:00:13]} 47. Nf4+ {[%clk 0:00:03]}  Kg4 {[%clk 0:00:14]} 48. Ng6 {[%clk 0:00:03]}  Nf3+ {[%clk 0:00:14]} 49. Kf2 {[%clk 0:00:03]}  Nxh4 {[%clk 0:00:14]} 50. Nxh4 {[%clk 0:00:03]}  Kxg5 {[%clk 0:00:15]} 51. Rf7 {[%clk 0:00:03]}  d3 {[%clk 0:00:15]} 52. Rxc7 {[%clk 0:00:02]}  Kxh4 {[%clk 0:00:14]} 53. Rd7 {[%clk 0:00:03]}  d2 {[%clk 0:00:14]} 54. Rxd2 {[%clk 0:00:04]}  Kg5 {[%clk 0:00:15]} 55. Rd7 {[%clk 0:00:04]}  Kf6 {[%clk 0:00:16]} 56. Rxb7 {[%clk 0:00:05]}  Ke6 {[%clk 0:00:16]} 57. Rxa7 {[%clk 0:00:05]}  Kd5 {[%clk 0:00:17]} 58. Ra6 {[%clk 0:00:06]}  Kc4 {[%clk 0:00:17]} 59. Rh6 {[%clk 0:00:07]}  Kd3 {[%clk 0:00:17]} 60. Rh3+ {[%clk 0:00:07]}  Kc2 {[%clk 0:00:18]} 61. c4 {[%clk 0:00:08]}  Kb1 {[%clk 0:00:19]} 62. c5 {[%clk 0:00:09]}  Kxa2 {[%clk 0:00:19]} 63. c6 {[%clk 0:00:10]}  Kb1 {[%clk 0:00:20]} 64. c7 {[%clk 0:00:10]}  Ka2 {[%clk 0:00:21]} 65. b4 {[%clk 0:00:11]}  Kb1 {[%clk 0:00:22]} 66. b5 {[%clk 0:00:12]}  Ka2 {[%clk 0:00:23]} 67. b6 {[%clk 0:00:12]}  Kb1 {[%clk 0:00:24]} 68. b7 {[%clk 0:00:12]}  Ka2 {[%clk 0:00:24]} 69. Rf3 {[%clk 0:00:12]}  Kb1 {[%clk 0:00:25]} 70. Kg3 {[%clk 0:00:13]}  Ka2 {[%clk 0:00:26]} 71. Kf4 {[%clk 0:00:13]}  Kb1 {[%clk 0:00:27]} 72. Rf2 {[%clk 0:00:14]}  Ka1 {[%clk 0:00:27]} 73. Ke3 {[%clk 0:00:14]}  Kb1 {[%clk 0:00:28]} 74. Kd3 {[%clk 0:00:15]}  Ka1 {[%clk 0:00:29]} 75. Kc3 {[%clk 0:00:15]}  Kb1 {[%clk 0:00:30]} 76. c8=Q {[%clk 0:00:15]}  Kc1 {[%clk 0:00:31]} 77. Rf1# {[%clk 0:00:15]} 1-0


[Site "https://www.chess.com"]

[Event "Titled Tuesday Blitz March 01 Late 2022"]
[White "Rudzinska, Michalina"]
[Black "Nilsen, Tobias Lang"]
[WhiteFideId "1172883"]
[BlackFideId "1521624"]
[WhiteElo "1904"]
[BlackElo "2013"]
[Result "1-0"]
[Round "08"]
[TimeControl "180+1"]
[Date "2022.03.02"]
[WhiteClock "0:00:20"]
[BlackClock "0:01:00"]

1. e4 {[%clk 0:02:56]}  f5 {[%clk 0:03:00]} 2. exf5 {[%clk 0:02:56]}  Kf7 {[%clk 0:03:00]} 3. Bc4+ {[%clk 0:02:53]}  d5 {[%clk 0:02:58]} 4. Bb3 {[%clk 0:02:51]}  g6 {[%clk 0:02:57]} 5. fxg6+ {[%clk 0:02:51]}  Kg7 {[%clk 0:02:56]} 6. gxh7 {[%clk 0:02:50]}  Rxh7 {[%clk 0:02:56]} 7. Nf3 {[%clk 0:02:49]}  Nc6 {[%clk 0:02:55]} 8. d4 {[%clk 0:02:49]}  Bg4 {[%clk 0:02:54]} 9. h3 {[%clk 0:02:48]}  Nf6 {[%clk 0:02:54]} 10. Bf4 {[%clk 0:02:45]}  Qd7 {[%clk 0:02:37]} 11. c3 {[%clk 0:02:44]}  Re8 {[%clk 0:02:36]} 12. Bc2 {[%clk 0:02:44]}  Rh8 {[%clk 0:02:32]} 13. Qd3 {[%clk 0:02:38]}  Bh5 {[%clk 0:02:27]} 14. Ne5 {[%clk 0:02:33]}  Nxe5 {[%clk 0:02:26]} 15. Bxe5 {[%clk 0:02:34]}  c5 {[%clk 0:02:19]} 16. Nd2 {[%clk 0:02:31]}  c4 {[%clk 0:02:19]} 17. Qg3+ {[%clk 0:02:30]}  Kf7 {[%clk 0:02:18]} 18. Nf3 {[%clk 0:02:28]}  Bh6 {[%clk 0:02:16]} 19. Bf4 {[%clk 0:02:21]}  Bxf3 {[%clk 0:02:16]} 20. Qxf3 {[%clk 0:02:20]}  Reg8 {[%clk 0:02:00]} 21. Bxh6 {[%clk 0:02:19]}  Rxh6 {[%clk 0:02:00]} 22. O-O-O {[%clk 0:02:18]}  b5 {[%clk 0:01:53]} 23. g4 {[%clk 0:02:13]}  a5 {[%clk 0:01:53]} 24. Qe3 {[%clk 0:02:09]}  Rhh8 {[%clk 0:01:48]} 25. Rde1 {[%clk 0:02:05]}  b4 {[%clk 0:01:43]} 26. Bf5 {[%clk 0:02:04]}  Qd6 {[%clk 0:01:40]} 27. Be6+ {[%clk 0:02:04]}  Kf8 {[%clk 0:01:38]} 28. Bxg8 {[%clk 0:02:02]}  Rxg8 {[%clk 0:01:39]} 29. Qe5 {[%clk 0:01:52]}  Qd7 {[%clk 0:01:35]} 30. Qf5 {[%clk 0:01:46]}  Qa4 {[%clk 0:01:27]} 31. Kb1 {[%clk 0:01:08]}  bxc3 {[%clk 0:01:18]} 32. g5 {[%clk 0:01:04]}  c2+ {[%clk 0:01:07]} 33. Ka1 {[%clk 0:00:45]}  c3 {[%clk 0:01:07]} 34. gxf6 {[%clk 0:00:35]}  cxb2+ {[%clk 0:01:07]} 35. Kxb2 {[%clk 0:00:36]}  Qb4+ {[%clk 0:01:07]} 36. Kxc2 {[%clk 0:00:35]}  Qc4+ {[%clk 0:01:08]} 37. Kd2 {[%clk 0:00:34]}  Qxd4+ {[%clk 0:01:08]} 38. Qd3 {[%clk 0:00:26]}  Qxf2+ {[%clk 0:01:08]} 39. Kc1 {[%clk 0:00:22]}  Qc5+ {[%clk 0:01:02]} 40. Qc2 {[%clk 0:00:21]}  Qa3+ {[%clk 0:01:02]} 41. Qb2 {[%clk 0:00:20]}  Qc5+ {[%clk 0:01:00]} 42. Kb1 {[%clk 0:00:20]} 1-0


[Site "https://www.chess.com"]

[Event "Titled Tuesday Blitz March 01 Late 2022"]
[White "Ruiz Aguilar, Pablo Alexander"]
[Black "Hamley, Ryan"]
[WhiteFideId "4401352"]
[BlackFideId "30959497"]
[WhiteElo "2125"]
[BlackElo "2591"]
[Result "1-0"]
[Round "08"]
[TimeControl "180+1"]
[Date "2022.03.02"]
[WhiteClock "0:01:03"]
[BlackClock "0:01:19"]

1. e4 {[%clk 0:03:00]}  c6 {[%clk 0:02:53]} 2. d4 {[%clk 0:03:00]}  g6 {[%clk 0:02:54]} 3. Nf3 {[%clk 0:02:59]}  Bg7 {[%clk 0:02:54]} 4. Bd3 {[%clk 0:02:57]}  d5 {[%clk 0:02:54]} 5. e5 {[%clk 0:02:56]}  Bg4 {[%clk 0:02:55]} 6. c3 {[%clk 0:02:56]}  e6 {[%clk 0:02:55]} 7. h3 {[%clk 0:02:56]}  Bxf3 {[%clk 0:02:55]} 8. Qxf3 {[%clk 0:02:56]}  h6 {[%clk 0:02:56]} 9. O-O {[%clk 0:02:56]}  Ne7 {[%clk 0:02:56]} 10. Nd2 {[%clk 0:02:53]}  Nd7 {[%clk 0:02:56]} 11. Re1 {[%clk 0:02:53]}  c5 {[%clk 0:02:56]} 12. Nf1 {[%clk 0:02:53]}  Nc6 {[%clk 0:02:56]} 13. Be3 {[%clk 0:02:52]}  cxd4 {[%clk 0:02:54]} 14. cxd4 {[%clk 0:02:51]}  Qb6 {[%clk 0:02:55]} 15. Qg4 {[%clk 0:02:41]}  O-O-O {[%clk 0:02:46]} 16. Rab1 {[%clk 0:02:36]}  Kb8 {[%clk 0:02:43]} 17. b4 {[%clk 0:02:34]}  Rc8 {[%clk 0:02:38]} 18. a3 {[%clk 0:02:09]}  Bf8 {[%clk 0:02:38]} 19. Rec1 {[%clk 0:02:06]}  Be7 {[%clk 0:02:35]} 20. Nd2 {[%clk 0:02:03]}  h5 {[%clk 0:02:34]} 21. Qf4 {[%clk 0:02:02]}  Rhf8 {[%clk 0:02:31]} 22. Nb3 {[%clk 0:02:00]}  Ka8 {[%clk 0:02:26]} 23. Nc5 {[%clk 0:02:00]}  Ndb8 {[%clk 0:02:19]} 24. Qf3 {[%clk 0:01:52]}  f6 {[%clk 0:01:57]} 25. Nxe6 {[%clk 0:01:49]}  Nxe5 {[%clk 0:01:56]} 26. dxe5 {[%clk 0:01:41]}  Qxe6 {[%clk 0:01:56]} 27. Rxc8 {[%clk 0:01:36]}  Rxc8 {[%clk 0:01:47]} 28. Bxg6 {[%clk 0:01:35]}  Qxe5 {[%clk 0:01:45]} 29. Qxh5 {[%clk 0:01:29]}  Rc3 {[%clk 0:01:33]} 30. Qg4 {[%clk 0:01:21]}  Rxa3 {[%clk 0:01:26]} 31. Bf4 {[%clk 0:01:19]}  Qd4 {[%clk 0:01:24]} 32. Rd1 {[%clk 0:01:15]}  Ra1 {[%clk 0:01:23]} 33. Rxa1 {[%clk 0:01:13]}  Qxa1+ {[%clk 0:01:24]} 34. Kh2 {[%clk 0:01:13]}  Qd4 {[%clk 0:01:22]} 35. b5 {[%clk 0:01:07]}  a6 {[%clk 0:01:21]} 36. bxa6 {[%clk 0:01:05]}  Nxa6 {[%clk 0:01:22]} 37. Qc8+ {[%clk 0:01:04]}  Ka7 {[%clk 0:01:19]} 38. Be3 {[%clk 0:01:04]}  Bd6+ {[%clk 0:01:19]} 39. Kh1 {[%clk 0:01:03]} 1-0


[Site "https://www.chess.com"]

[Event "Titled Tuesday Blitz March 01 Late 2022"]
[White "Stanisz, Patryk"]
[Black "Balint, Vilmos"]
[WhiteFideId "1123106"]
[BlackFideId "718050"]
[WhiteElo "1876"]
[BlackElo "2059"]
[Result "0-1"]
[Round "08"]
[TimeControl "180+1"]
[Date "2022.03.02"]
[WhiteClock "0:01:22"]
[BlackClock "0:01:55"]

1. Nf3 {[%clk 0:02:59]}  f5 {[%clk 0:02:52]} 2. d4 {[%clk 0:02:55]}  Nf6 {[%clk 0:02:52]} 3. g3 {[%clk 0:02:56]}  g6 {[%clk 0:02:53]} 4. Bg2 {[%clk 0:02:57]}  Bg7 {[%clk 0:02:53]} 5. O-O {[%clk 0:02:57]}  O-O {[%clk 0:02:54]} 6. c4 {[%clk 0:02:58]}  d6 {[%clk 0:02:55]} 7. Nc3 {[%clk 0:02:58]}  Nc6 {[%clk 0:02:56]} 8. d5 {[%clk 0:02:58]}  Ne5 {[%clk 0:02:56]} 9. Nd2 {[%clk 0:02:58]}  c5 {[%clk 0:02:46]} 10. Rb1 {[%clk 0:02:58]}  h6 {[%clk 0:02:42]} 11. h4 {[%clk 0:02:57]}  g5 {[%clk 0:02:36]} 12. hxg5 {[%clk 0:02:54]}  hxg5 {[%clk 0:02:36]} 13. b3 {[%clk 0:02:55]}  Qe8 {[%clk 0:02:35]} 14. Re1 {[%clk 0:02:52]}  Qh5 {[%clk 0:02:33]} 15. Nf1 {[%clk 0:02:48]}  Kf7 {[%clk 0:02:29]} 16. e4 {[%clk 0:02:43]}  Neg4 {[%clk 0:02:20]} 17. f3 {[%clk 0:02:28]}  Ne5 {[%clk 0:02:18]} 18. exf5 {[%clk 0:02:10]}  Bxf5 {[%clk 0:02:16]} 19. Ne4 {[%clk 0:02:11]}  Nxe4 {[%clk 0:02:11]} 20. fxe4 {[%clk 0:02:12]}  Bg4 {[%clk 0:02:11]} 21. Qd2 {[%clk 0:02:05]}  Bf6 {[%clk 0:02:04]} 22. Ne3 {[%clk 0:01:43]}  Bf3 {[%clk 0:02:00]} 23. Qf2 {[%clk 0:01:37]}  Bxg2 {[%clk 0:01:58]} 24. Kxg2 {[%clk 0:01:27]}  Rh8 {[%clk 0:01:57]} 25. Bb2 {[%clk 0:01:22]}  Qh3+ {[%clk 0:01:55]} 0-1


[Site "https://www.chess.com"]

[Event "Titled Tuesday Blitz March 01 Late 2022"]
[White "Stankovic, Ivan G"]
[Black "Arabidze, Meri"]
[WhiteFideId "902837"]
[BlackFideId "13604040"]
[WhiteElo "2195"]
[BlackElo "2329"]
[Result "1-0"]
[Round "08"]
[TimeControl "180+1"]
[Date "2022.03.02"]
[WhiteClock "0:00:04"]
[BlackClock "0:00:02"]

1. e4 {[%clk 0:03:00]}  c5 {[%clk 0:02:56]} 2. c4 {[%clk 0:03:00]}  e6 {[%clk 0:02:57]} 3. Nc3 {[%clk 0:03:00]}  Nc6 {[%clk 0:02:57]} 4. g3 {[%clk 0:03:01]}  Nd4 {[%clk 0:02:54]} 5. Bg2 {[%clk 0:03:01]}  Ne7 {[%clk 0:02:54]} 6. d3 {[%clk 0:03:01]}  Nec6 {[%clk 0:02:54]} 7. Nge2 {[%clk 0:03:01]}  a6 {[%clk 0:02:55]} 8. O-O {[%clk 0:03:01]}  Be7 {[%clk 0:02:55]} 9. Rb1 {[%clk 0:03:01]}  O-O {[%clk 0:02:55]} 10. a3 {[%clk 0:02:51]}  b6 {[%clk 0:02:54]} 11. e5 {[%clk 0:02:44]}  Rb8 {[%clk 0:02:47]} 12. Nxd4 {[%clk 0:02:37]}  cxd4 {[%clk 0:02:47]} 13. Ne2 {[%clk 0:02:36]}  Nxe5 {[%clk 0:02:42]} 14. Nxd4 {[%clk 0:02:36]}  Bb7 {[%clk 0:01:34]} 15. Bf4 {[%clk 0:02:25]}  f6 {[%clk 0:01:23]} 16. Nf3 {[%clk 0:02:16]}  Bd6 {[%clk 0:01:13]} 17. Bxe5 {[%clk 0:01:41]}  fxe5 {[%clk 0:01:13]} 18. d4 {[%clk 0:01:39]}  exd4 {[%clk 0:01:11]} 19. Nxd4 {[%clk 0:01:35]}  Bxg2 {[%clk 0:01:05]} 20. Kxg2 {[%clk 0:01:36]}  Qf6 {[%clk 0:01:04]} 21. b4 {[%clk 0:01:07]}  Rbd8 {[%clk 0:00:57]} 22. Qd3 {[%clk 0:01:02]}  Bc7 {[%clk 0:00:53]} 23. f4 {[%clk 0:00:56]}  d5 {[%clk 0:00:51]} 24. c5 {[%clk 0:00:53]}  Rde8 {[%clk 0:00:38]} 25. Rbe1 {[%clk 0:00:48]}  a5 {[%clk 0:00:31]} 26. c6 {[%clk 0:00:45]}  axb4 {[%clk 0:00:30]} 27. axb4 {[%clk 0:00:45]}  Bd6 {[%clk 0:00:25]} 28. b5 {[%clk 0:00:41]}  Bc5 {[%clk 0:00:24]} 29. Nf3 {[%clk 0:00:41]}  Ra8 {[%clk 0:00:15]} 30. Ne5 {[%clk 0:00:34]}  Qh6 {[%clk 0:00:13]} 31. Ra1 {[%clk 0:00:27]}  Qh5 {[%clk 0:00:11]} 32. Nd7 {[%clk 0:00:19]}  Rfc8 {[%clk 0:00:05]} 33. Nxc5 {[%clk 0:00:09]}  bxc5 {[%clk 0:00:06]} 34. b6 {[%clk 0:00:10]}  c4 {[%clk 0:00:05]} 35. Rxa8 {[%clk 0:00:08]}  Rxa8 {[%clk 0:00:05]} 36. b7 {[%clk 0:00:09]}  Ra2+ {[%clk 0:00:04]} 37. Rf2 {[%clk 0:00:07]}  Rxf2+ {[%clk 0:00:04]} 38. Kxf2 {[%clk 0:00:08]}  Qxh2+ {[%clk 0:00:04]} 39. Ke1 {[%clk 0:00:05]}  cxd3 {[%clk 0:00:04]} 40. b8=Q+ {[%clk 0:00:05]}  Kf7 {[%clk 0:00:05]} 41. Qc7+ {[%clk 0:00:05]}  Kg6 {[%clk 0:00:05]} 42. Qe5 {[%clk 0:00:06]}  Qxg3+ {[%clk 0:00:05]} 43. Kd2 {[%clk 0:00:06]}  Qf2+ {[%clk 0:00:03]} 44. Kxd3 {[%clk 0:00:07]}  Qf3+ {[%clk 0:00:03]} 45. Kd2 {[%clk 0:00:07]}  Qg2+ {[%clk 0:00:03]} 46. Kc3 {[%clk 0:00:07]}  Qf3+ {[%clk 0:00:03]} 47. Kb4 {[%clk 0:00:08]}  Qd1 {[%clk 0:00:02]} 48. Kc5 {[%clk 0:00:08]}  Qc2+ {[%clk 0:00:02]} 49. Kd6 {[%clk 0:00:09]}  d4 {[%clk 0:00:02]} 50. Qxd4 {[%clk 0:00:09]}  Qc1 {[%clk 0:00:01]} 51. Qe5 {[%clk 0:00:09]}  h5 {[%clk 0:00:02]} 52. Qxe6+ {[%clk 0:00:09]}  Kh7 {[%clk 0:00:02]} 53. Qe4+ {[%clk 0:00:09]}  g6 {[%clk 0:00:02]} 54. c7 {[%clk 0:00:09]}  h4 {[%clk 0:00:02]} 55. Qe7+ {[%clk 0:00:08]}  Kh6 {[%clk 0:00:01]} 56. Qxh4+ {[%clk 0:00:09]}  Kg7 {[%clk 0:00:02]} 57. Qe7+ {[%clk 0:00:09]}  Kh6 {[%clk 0:00:02]} 58. Qe5 {[%clk 0:00:09]}  Qc2 {[%clk 0:00:02]} 59. Qc5 {[%clk 0:00:06]}  Qd3+ {[%clk 0:00:02]} 60. Ke7 {[%clk 0:00:06]}  Qe4+ {[%clk 0:00:02]} 61. Kd8 {[%clk 0:00:05]}  Qd3+ {[%clk 0:00:02]} 62. Kc8 {[%clk 0:00:04]}  Qe4 {[%clk 0:00:02]} 63. Qg5+ {[%clk 0:00:04]}  Kg7 {[%clk 0:00:02]} 64. Qe5+ {[%clk 0:00:04]} 1-0


[Site "https://www.chess.com"]

[Event "Titled Tuesday Blitz March 01 Late 2022"]
[White "Suleymanli, Aydin"]
[Black "Sarana, Alexey"]
[WhiteFideId "13413937"]
[BlackFideId "24133795"]
[WhiteElo "2529"]
[BlackElo "2665"]
[Result "0-1"]
[Round "08"]
[TimeControl "180+1"]
[Date "2022.03.01"]
[WhiteClock "0:00:34"]
[BlackClock "0:00:34"]

1. d4 {[%clk 0:03:00]}  Nf6 {[%clk 0:02:59]} 2. c4 {[%clk 0:03:01]}  e6 {[%clk 0:03:00]} 3. Nc3 {[%clk 0:03:01]}  Bb4 {[%clk 0:03:00]} 4. e3 {[%clk 0:02:59]}  O-O {[%clk 0:03:00]} 5. Ne2 {[%clk 0:02:59]}  d5 {[%clk 0:02:59]} 6. a3 {[%clk 0:02:58]}  Be7 {[%clk 0:02:59]} 7. cxd5 {[%clk 0:02:58]}  exd5 {[%clk 0:02:58]} 8. b4 {[%clk 0:02:59]}  a5 {[%clk 0:02:58]} 9. b5 {[%clk 0:02:51]}  Bf5 {[%clk 0:02:58]} 10. f3 {[%clk 0:02:48]}  Re8 {[%clk 0:02:54]} 11. g4 {[%clk 0:02:47]}  Bg6 {[%clk 0:02:54]} 12. h4 {[%clk 0:02:45]}  h6 {[%clk 0:02:50]} 13. h5 {[%clk 0:02:43]}  Bh7 {[%clk 0:02:50]} 14. Nf4 {[%clk 0:02:36]}  Bd6 {[%clk 0:02:48]} 15. Kf2 {[%clk 0:02:36]}  c5 {[%clk 0:02:31]} 16. Bd3 {[%clk 0:02:30]}  cxd4 {[%clk 0:01:54]} 17. Bxh7+ {[%clk 0:02:26]}  Nxh7 {[%clk 0:01:54]} 18. Qxd4 {[%clk 0:02:11]}  Be5 {[%clk 0:01:51]} 19. Qd2 {[%clk 0:01:57]}  Nd7 {[%clk 0:01:48]} 20. Nfxd5 {[%clk 0:01:46]}  Nc5 {[%clk 0:01:48]} 21. Rb1 {[%clk 0:01:44]}  Ng5 {[%clk 0:01:39]} 22. Kg2 {[%clk 0:01:21]}  Bxc3 {[%clk 0:01:16]} 23. Nxc3 {[%clk 0:01:20]}  Qf6 {[%clk 0:01:16]} 24. Rf1 {[%clk 0:01:20]}  Rad8 {[%clk 0:01:17]} 25. Qc2 {[%clk 0:01:11]}  Nd3 {[%clk 0:01:13]} 26. e4 {[%clk 0:01:04]}  Nxf3 {[%clk 0:01:06]} 27. Be3 {[%clk 0:00:53]}  Nde5 {[%clk 0:00:40]} 28. Nd5 {[%clk 0:00:43]}  Qh4 {[%clk 0:00:36]} 29. Rxf3 {[%clk 0:00:41]}  Nxf3 {[%clk 0:00:37]} 30. Kxf3 {[%clk 0:00:42]}  Qh3+ {[%clk 0:00:37]} 31. Ke2 {[%clk 0:00:34]}  Rxd5 {[%clk 0:00:34]} 0-1


[Site "https://www.chess.com"]

[Event "Titled Tuesday Blitz March 01 Late 2022"]
[White "Tomb, Maroun"]
[Black "Cardoso Cardoso, Jose Gabriel"]
[WhiteFideId "5300398"]
[BlackFideId "4430492"]
[WhiteElo "2568"]
[BlackElo "2451"]
[Result "0-1"]
[Round "08"]
[TimeControl "180+1"]
[Date "2022.03.01"]
[WhiteClock "0:00:16"]
[BlackClock "0:00:02"]

1. e4 {[%clk 0:03:00]}  g6 {[%clk 0:02:46]} 2. Nc3 {[%clk 0:02:59]}  Bg7 {[%clk 0:02:45]} 3. Nge2 {[%clk 0:03:00]}  c5 {[%clk 0:02:43]} 4. d4 {[%clk 0:03:00]}  cxd4 {[%clk 0:02:44]} 5. Nxd4 {[%clk 0:03:00]}  Nc6 {[%clk 0:02:44]} 6. Nde2 {[%clk 0:03:01]}  Nf6 {[%clk 0:02:35]} 7. g3 {[%clk 0:03:02]}  b5 {[%clk 0:02:28]} 8. Bg2 {[%clk 0:03:02]}  b4 {[%clk 0:02:28]} 9. Nd5 {[%clk 0:03:02]}  Rb8 {[%clk 0:02:22]} 10. O-O {[%clk 0:03:02]}  d6 {[%clk 0:02:19]} 11. h3 {[%clk 0:02:48]}  O-O {[%clk 0:02:17]} 12. a3 {[%clk 0:02:43]}  a5 {[%clk 0:01:59]} 13. axb4 {[%clk 0:02:43]}  axb4 {[%clk 0:02:00]} 14. Be3 {[%clk 0:02:41]}  Nd7 {[%clk 0:01:42]} 15. Nd4 {[%clk 0:02:30]}  Nxd4 {[%clk 0:01:37]} 16. Bxd4 {[%clk 0:02:31]}  Ne5 {[%clk 0:01:07]} 17. b3 {[%clk 0:02:25]}  Be6 {[%clk 0:01:02]} 18. f4 {[%clk 0:02:20]}  Bxd5 {[%clk 0:01:00]} 19. exd5 {[%clk 0:02:18]}  Nd7 {[%clk 0:01:00]} 20. Bxg7 {[%clk 0:02:17]}  Kxg7 {[%clk 0:01:01]} 21. Qd4+ {[%clk 0:02:17]}  Kg8 {[%clk 0:01:00]} 22. Rfe1 {[%clk 0:02:17]}  Rc8 {[%clk 0:00:56]} 23. Re2 {[%clk 0:02:11]}  Rc5 {[%clk 0:00:34]} 24. Qxb4 {[%clk 0:02:06]}  Nf6 {[%clk 0:00:35]} 25. Qd4 {[%clk 0:01:58]}  Qc7 {[%clk 0:00:33]} 26. c4 {[%clk 0:01:54]}  Re8 {[%clk 0:00:22]} 27. Re3 {[%clk 0:01:52]}  h5 {[%clk 0:00:20]} 28. Bf1 {[%clk 0:01:51]}  Qb6 {[%clk 0:00:16]} 29. Ra4 {[%clk 0:01:39]}  Qb7 {[%clk 0:00:12]} 30. b4 {[%clk 0:01:37]}  Rc7 {[%clk 0:00:13]} 31. c5 {[%clk 0:01:31]}  dxc5 {[%clk 0:00:10]} 32. bxc5 {[%clk 0:01:32]}  Nxd5 {[%clk 0:00:10]} 33. Re1 {[%clk 0:00:40]}  Qc6 {[%clk 0:00:08]} 34. Bg2 {[%clk 0:00:35]}  e6 {[%clk 0:00:08]} 35. Bxd5 {[%clk 0:00:31]}  exd5 {[%clk 0:00:08]} 36. Rxe8+ {[%clk 0:00:26]}  Qxe8 {[%clk 0:00:09]} 37. Qxd5 {[%clk 0:00:27]}  Qe1+ {[%clk 0:00:02]} 38. Kg2 {[%clk 0:00:27]}  Qe2+ {[%clk 0:00:03]} 39. Kg1 {[%clk 0:00:26]}  Re7 {[%clk 0:00:03]} 40. Ra8+ {[%clk 0:00:24]}  Kh7 {[%clk 0:00:03]} 41. Ra1 {[%clk 0:00:20]}  Re3 {[%clk 0:00:03]} 42. Qg2 {[%clk 0:00:18]}  Qd3 {[%clk 0:00:02]} 43. Kh2 {[%clk 0:00:18]}  Re2 {[%clk 0:00:02]} 44. Rg1 {[%clk 0:00:19]}  Rxg2+ {[%clk 0:00:02]} 45. Rxg2 {[%clk 0:00:20]}  Qc3 {[%clk 0:00:03]} 46. f5 {[%clk 0:00:20]}  Qxc5 {[%clk 0:00:03]} 47. fxg6+ {[%clk 0:00:21]}  fxg6 {[%clk 0:00:03]} 48. Rg1 {[%clk 0:00:22]}  Kh6 {[%clk 0:00:04]} 49. Rg2 {[%clk 0:00:22]}  h4 {[%clk 0:00:04]} 50. gxh4 {[%clk 0:00:22]}  Qe5+ {[%clk 0:00:04]} 51. Kh1 {[%clk 0:00:22]}  Qe1+ {[%clk 0:00:04]} 52. Kh2 {[%clk 0:00:22]}  Qxh4 {[%clk 0:00:05]} 53. Rg4 {[%clk 0:00:23]}  Qf2+ {[%clk 0:00:05]} 54. Rg2 {[%clk 0:00:24]}  Qf4+ {[%clk 0:00:05]} 55. Kh1 {[%clk 0:00:24]}  g5 {[%clk 0:00:06]} 56. Rg4 {[%clk 0:00:24]}  Qf3+ {[%clk 0:00:05]} 57. Kh2 {[%clk 0:00:25]}  Kg6 {[%clk 0:00:05]} 58. Rg2 {[%clk 0:00:24]}  Kf5 {[%clk 0:00:05]} 59. Rg4 {[%clk 0:00:24]}  Qf2+ {[%clk 0:00:05]} 60. Rg2 {[%clk 0:00:24]}  Qe1 {[%clk 0:00:05]} 61. Rg4 {[%clk 0:00:24]}  Qe3 {[%clk 0:00:05]} 62. Kg2 {[%clk 0:00:24]}  Qd2+ {[%clk 0:00:04]} 63. Kg1 {[%clk 0:00:24]}  Qe2 {[%clk 0:00:04]} 64. Kh1 {[%clk 0:00:24]}  Qf2 {[%clk 0:00:04]} 65. Rg2 {[%clk 0:00:22]}  Qf1+ {[%clk 0:00:03]} 66. Kh2 {[%clk 0:00:23]}  Kf4 {[%clk 0:00:03]} 67. Rg4+ {[%clk 0:00:20]}  Kf3 {[%clk 0:00:03]} 68. Rxg5 {[%clk 0:00:20]}  Qe2+ {[%clk 0:00:03]} 69. Kh1 {[%clk 0:00:20]}  Qe1+ {[%clk 0:00:02]} 70. Kh2 {[%clk 0:00:20]}  Qd2+ {[%clk 0:00:02]} 71. Kh1 {[%clk 0:00:16]}  Qxg5 {[%clk 0:00:02]} 0-1


[Site "https://www.chess.com"]